[Event "13th Palmanova Festival A 2024"]
[Site "Palmanova"]
[Date "2024.12.28"]
[Round "2.5"]
[White "Mostbauer, Florian"]
[Black "Sepehrkhoui, Ardeshir"]
[Result "0-1"]
[ECO "E62"]
[WhiteElo "2356"]
[BlackElo "2266"]
[Annotator "ChessBase"]
[PlyCount "126"]
[EventDate "2024.12.27"]
[EventCountry "ITA"]
[SourceTitle "playchess.com"]
[Source "ChessBase"]
[SourceQuality "1"]
[TimeControl "6000+30"]

1. Nf3 {[%emt 0:00:04]} Nf6 {[%emt 0:00:24]} 2. c4 {[%emt 0:00:08]} g6 {[%emt 0:01:37]} 3. g3 {[%emt 0:00:58]} Bg7 {[%emt 0:00:09]} 4. Bg2 {[%emt 0:00:07]} d6 {[%emt 0:00:54]} 5. O-O {[%emt 0:00:35]} O-O {[%emt 0:01:28]} 6. Nc3 {[%emt 0:01:23]} c6 {[%emt 0:07:36]} 7. d4 {[%emt 0:04:31]} Qa5 {[%emt 0:07:43]} 8. h3 {[%emt 0:05:24]} Nbd7 {[%emt 0:06:46]} 9. e4 {[%emt 0:10:10]} a6 {[%emt 0:20:30]} 10. Rb1 {[%emt 0:05:04]} Qc7 {[%emt 0:07:51]} 11. Qe2 {[%emt 0:03:42]} e5 {[%emt 0:02:44]} 12. dxe5 {[%emt 0:06:48]} dxe5 {[%emt 0:01:20]} 13. Be3 {[%emt 0:00:56]} b5 {[%emt 0:04:50]} 14. Nd2 {[%emt 0:11:22]} Re8 {[%emt 0:03:10]} 15. b4 {[%emt 0:02:32]} Nb6 {[%emt 0:07:09]} 16. Rfc1 {[%emt 0:03:49]} Nxc4 {[%emt 0:00:57]} 17. Nxc4 {[%emt 0:00:22]} bxc4 {[%emt 0:00:02]} 18. Qxc4 {[%emt 0:00:23]} Qb7 {[%emt 0:04:59]} 19. Na4 {[%emt 0:03:40]} Be6 {[%emt 0:00:35]} 20. Qc2 {[%emt 0:00:46]} Nd7 {[%emt 0:05:07]} 21. Bf1 {[%emt 0:07:53]} Rec8 {[%emt 0:03:21]} 22. g4 {[%emt 0:05:40]} Bf8 {[%emt 0:00:37]} 23. a3 {[%emt 0:00:36]} Qc7 {[%emt 0:00:45]} 24. Bc4 {[%emt 0:06:51]} Bxc4 {[%emt 0:04:32]} 25. Qxc4 {[%emt 0:00:09]} Qd8 {[%emt 0:03:20]} 26. Rd1 {[%emt 0:03:41]} Qe7 {[%emt 0:00:11]} 27. Bg5 {[%emt 0:01:13]} Qe8 {[%emt 0:00:53]} 28. Rd3 {[%emt 0:03:07]} c5 {[%emt 0:15:00]} 29. b5 {[%emt 0:06:15]} axb5 {[%emt 0:00:00]} 30. Rxb5 {[%emt 0:17:21]} Rcb8 {[%emt 0:01:00]} 31. Nc3 {[%emt 0:00:30]} h6 {[%emt 0:00:00]} 32. Rxb8 {[%emt 0:00:00]} Rxb8 {[%emt 0:00:00]} 33. Be3 {[%emt 0:00:00]} Nb6 {[%emt 0:00:00]} 34. Qa2 {[%emt 0:00:00]} c4 {[%emt 0:00:00]} 35. Rd1 {[%emt 0:00:00]} Na4 {[%emt 0:00:41]} 36. Rc1 {[%emt 0:00:00]} Rb3 {[%emt 0:01:06]} 37. Nd5 {[%emt 0:00:00]} Qb5 {[%emt 0:00:28]} 38. Qe2 {[%emt 0:00:00]} Rb1 {[%emt 0:00:36]} 39. Kg2 {[%emt 0:00:00]} Rxc1 {[%emt 0:00:21]} 40. Bxc1 {[%emt 0:00:00]} Nc5 {[%emt 0:00:45]} 41. Qb2 {[%emt 0:00:00]} Qxb2 {[%emt 0:00:00]} 42. Bxb2 {[%emt 0:00:00]} Nd3 {[%emt 0:00:00]} 43. Bc3 {[%emt 0:00:00]} Bxa3 {[%emt 0:00:00]} 44. Ne3 {[%emt 0:00:00]} Bb2 {[%emt 0:00:00]} 45. Bxb2 {[%emt 0:00:00]} Nxb2 {[%emt 0:00:00]} 46. Kf3 {[%emt 0:00:00]} g5 {[%emt 0:00:00]} 47. Ke2 {[%emt 0:00:00]} c3 {[%emt 0:00:00]} 48. f3 {[%emt 0:00:00]} Kh7 {[%emt 0:00:00]} 49. Nc2 {[%emt 0:00:00]} Kg6 {[%emt 0:00:00]} 50. Ne3 {[%emt 0:00:00]} f6 {[%emt 0:00:00]} 51. Nc2 {[%emt 0:10:00]} h5 {[%emt 0:00:00]} 52. gxh5+ {[%emt 0:00:00]} Kxh5 {[%emt 0:00:00]} 53. Ne3 {[%emt 0:00:00]} Kh4 {[%emt 0:00:00]} 54. Nd5 {[%emt 0:00:00]} c2 {[%emt 0:00:00]} 55. Kd2 {[%emt 0:00:00]} Nd3 {[%emt 0:00:00]} 56. Kxc2 {[%emt 0:00:00]} Ne1+ {[%emt 0:00:00]} 57. Kd2 {[%emt 0:00:00]} Nxf3+ {[%emt 0:00:00]} 58. Ke3 {[%emt 0:00:00]} Nd4 {[%emt 0:00:00]} 59. Nxf6 {[%emt 0:00:00]} Kxh3 {[%emt 0:00:10]} 60. Kf2 {[%emt 0:00:00]} g4 {[%emt 0:00:53]} 61. Nh5 {[%emt 0:00:00]} Nf3 {[%emt 0:00:32]} 62. Nf6 {[%emt 0:00:00]} Ng5 {[%emt 0:00:20]} 63. Nd7 {[%emt 0:00:00]} g3+ {[%emt 0:00:35]} 0-1

[Event "13th Palmanova Festival A 2024"]
[Site "Palmanova"]
[Date "2024.12.28"]
[Round "2.6"]
[White "Zamengo, Fulvio"]
[Black "Adharsh K"]
[Result "1-0"]
[ECO "B66"]
[WhiteElo "2348"]
[BlackElo "2235"]
[Annotator "ChessBase"]
[PlyCount "119"]
[EventDate "2024.12.27"]
[EventCountry "ITA"]
[SourceTitle "playchess.com"]
[Source "ChessBase"]
[SourceQuality "1"]
[TimeControl "6000+30"]

1. e4 {[%emt 0:05:29]} c5 {[%emt 0:00:06]} 2. Nf3 {[%emt 0:00:21]} Nc6 {[%emt 0:00:07]} 3. d4 {[%emt 0:00:36]} cxd4 {[%emt 0:00:18]} 4. Nxd4 {[%emt 0:00:09]} Nf6 {[%emt 0:00:13]} 5. Nc3 {[%emt 0:00:07]} d6 {[%emt 0:00:37]} 6. Bg5 {[%emt 0:01:48]} e6 {[%emt 0:00:46]} 7. Qd2 {[%emt 0:00:33]} Be7 {[%emt 0:00:13]} 8. O-O-O {[%emt 0:01:54]} a6 {[%emt 0:00:13]} 9. Bxf6 {[%emt 0:01:36]} gxf6 {[%emt 0:00:07]} 10. f4 {[%emt 0:00:15]} Bd7 {[%emt 0:02:13]} 11. Be2 {[%emt 0:11:11]} Nxd4 {[%emt 0:00:30]} 12. Qxd4 {[%emt 0:00:08]} Qa5 {[%emt 0:00:02]} 13. Bf3 {[%emt 0:00:16]} Qc5 {[%emt 0:00:13]} 14. Qd2 {[%emt 0:00:07]} O-O-O {[%emt 0:03:25]} 15. Rhe1 {[%emt 0:00:07]} Kb8 {[%emt 0:01:37]} 16. Kb1 {[%emt 0:00:10]} h5 {[%emt 0:00:10]} 17. Re3 {[%emt 0:00:23]} Bc6 {[%emt 0:05:48]} 18. Nd5 {[%emt 0:20:45]} Bxd5 {[%emt 0:02:12]} 19. exd5 {[%emt 0:00:10]} e5 {[%emt 0:02:12]} 20. Rc3 {[%emt 0:00:56]} Qb6 {[%emt 0:07:14]} 21. Rb3 {[%emt 0:00:19]} Qc5 {[%emt 0:02:11]} 22. Qe2 {[%emt 0:00:43]} Rc8 {[%emt 0:13:51]} 23. Bxh5 {[%emt 0:19:20]} Qc4 {[%emt 0:20:00]} 24. Qxc4 {[%emt 0:00:20]} Rxc4 {[%emt 0:00:09]} 25. Be2 {[%emt 0:00:04]} Rc7 {[%emt 0:01:52]} 26. h3 {[%emt 0:12:50]} Ka7 {[%emt 0:00:25]} 27. Rf3 {[%emt 0:00:22]} e4 {[%emt 0:01:37]} 28. Re3 {[%emt 0:02:19]} f5 {[%emt 0:00:05]} 29. g4 {[%emt 0:00:06]} Bh4 {[%emt 0:02:13]} 30. Rf1 {[%emt 0:04:01]} Re7 {[%emt 0:00:23]} 31. gxf5 {[%emt 0:04:53]} Kb6 {[%emt 0:05:58]} 32. Bg4 {[%emt 0:11:15]} Kc5 {[%emt 0:02:32]} 33. Rc3+ {[%emt 0:00:19]} Kb6 {[%emt 0:00:06]} 34. Re3 {[%emt 0:00:07]} Kc5 {[%emt 0:00:05]} 35. a3 {[%emt 0:02:19]} Bf6 {[%emt 0:01:10]} 36. Rd1 {[%emt 0:00:17]} a5 {[%emt 0:01:18]} 37. a4 {[%emt 0:04:44]} b5 {[%emt 0:01:30]} 38. axb5 {[%emt 0:00:06]} Rb8 {[%emt 0:04:26]} 39. Be2 {[%emt 0:00:12]} Rg8 {[%emt 0:00:26]} 40. Bg4 {[%emt 0:07:51]} Rb8 {[%emt 0:00:05]} 41. Be2 {[%emt 0:00:00]} Rg8 {[%emt 0:00:00]} 42. Bf1 {[%emt 0:00:00]} Rg1 {[%emt 0:00:00]} 43. Kc1 {[%emt 0:00:00]} Rh1 {[%emt 0:00:00]} 44. c3 {[%emt 0:00:00]} Rg1 {[%emt 0:00:00]} 45. Kd2 {[%emt 0:00:00]} a4 {[%emt 0:00:00]} 46. Ke2 {[%emt 0:00:00]} Rg8 {[%emt 0:00:00]} 47. Ra1 {[%emt 0:00:00]} Kxb5 {[%emt 0:00:00]} 48. Kf2+ {[%emt 0:00:00]} Kc5 {[%emt 0:00:00]} 49. Rxa4 {[%emt 0:00:00]} Kxd5 {[%emt 0:00:00]} 50. Bg2 {[%emt 0:00:00]} Rge8 {[%emt 0:00:00]} 51. Rb4 {[%emt 0:00:00]} Rg8 {[%emt 0:00:00]} 52. Bxe4+ {[%emt 0:00:00]} Kc5 {[%emt 0:00:00]} 53. Bf3 {[%emt 0:00:00]} Ra7 {[%emt 0:00:00]} 54. Rd3 {[%emt 0:00:00]} Bh4+ {[%emt 0:00:00]} 55. Ke2 {[%emt 0:00:00]} Re7+ {[%emt 0:00:00]} 56. Kd2 {[%emt 0:00:00]} Rg3 {[%emt 0:00:00]} 57. Rb8 {[%emt 0:00:00]} d5 {[%emt 0:00:00]} 58. b4+ {[%emt 0:00:00]} Kd6 {[%emt 0:00:00]} 59. Rc8 {[%emt 0:00:00]} Kd7 {[%emt 0:00:00]} 60. Rc5 {[%emt 0:00:00]} 1-0

[Event "13th Palmanova Festival A 2024"]
[Site "Palmanova"]
[Date "2024.12.28"]
[Round "2.7"]
[White "Cina`, Vittorio"]
[Black "Tejaswini G"]
[Result "1-0"]
[ECO "E90"]
[WhiteElo "2325"]
[BlackElo "2211"]
[Annotator "RC"]
[PlyCount "73"]
[EventDate "2024.12.27"]
[EventCountry "ITA"]
[SourceTitle "playchess.com"]
[Source "ChessBase"]
[SourceQuality "1"]
[TimeControl "6000+30"]

1. d4 {[%emt 0:01:23]} Nf6 {[%emt 0:00:18]} 2. c4 {[%emt 0:00:06]} g6 {[%emt 0:00:05]} 3. Nc3 {[%emt 0:00:11]} Bg7 {[%emt 0:00:05]} 4. e4 {[%emt 0:00:04]} d6 {[%emt 0:00:08]} 5. h3 {[%emt 0:00:06]} O-O {[%emt 0:00:07]} 6. Be3 {[%emt 0:00:07]} Nbd7 {[%emt 0:00:07]} 7. Nf3 {[%emt 0:00:05]} e5 {[%emt 0:00:06]} 8. Qc2 {[%emt 0:00:03]} exd4 {[%emt 0:02:58]} 9. Nxd4 {[%emt 0:00:06]} Re8 {[%emt 0:00:13]} 10. O-O-O {[%emt 0:02:46]} c6 {[%emt 0:14:05]} 11. g4 {[%emt 0:00:41]} a6 {[%emt 0:08:28]} 12. g5 {[%emt 0:04:58]} Nh5 {[%emt 0:03:32]} 13. Be2 {[%emt 0:00:33]} Nc5 {[%emt 0:13:32]} 14. Bxh5 {[%emt 0:06:11]} gxh5 {[%emt 0:00:02]} 15. Nf5 {[%emt 0:36:40]} Bxf5 {[%emt 0:01:39]} 16. exf5 {[%emt 0:03:05]} Rxe3 {[%emt 0:14:58]} 17. fxe3 {[%emt 0:00:51]} Qxg5 {[%emt 0:00:10]} 18. Rhg1 {[%emt 0:09:34]} Qxe3+ {[%emt 0:07:31]} 19. Qd2 {[%emt 0:01:43]} Qxd2+ {[%emt 0:02:27]} 20. Rxd2 {[%emt 0:00:10]} Kh8 {[%emt 0:04:25]} 21. Rxd6 {[%emt 0:00:46]} Be5 {[%emt 0:00:23]} 22. Rdd1 {[%emt 0:00:29]} a5 {[%emt 0:04:03]} 23. Kc2 {[%emt 0:00:51]} h6 {[%emt 0:04:02]} 24. Rde1 {[%emt 0:03:38]} Bf6 {[%emt 0:01:40]} 25. Ne4 {[%emt 0:06:33]} Nxe4 {[%emt 0:00:19]} 26. Rxe4 {[%emt 0:00:04]} a4 {[%emt 0:04:06]} 27. Rge1 {[%emt 0:06:57]} Ra5 {[%emt 0:05:21]} 28. Re8+ {[%emt 0:00:27]} Kh7 {[%emt 0:00:36]} 29. Rf1 {[%emt 0:00:32]} Rc5 {[%emt 0:01:54]} 30. b3 {[%emt 0:00:15]} b5 {[%emt 0:01:26]} 31. Rf4 {[%emt 0:04:29]} Bg5 {[%emt 0:05:29]} 32. b4 {[%emt 0:00:24]} Rxc4+ {[%emt 0:02:49]} 33. Rxc4 {[%emt 0:00:07]} bxc4 {[%emt 0:00:03]} 34. Rc8 {[%emt 0:00:12]} Be7 {[%emt 0:00:18]} 35. a3 {[%emt 0:00:10]} Kg7 {[%emt 0:00:18]} 36. Rxc6 {[%emt 0:00:07]} h4 {[%emt 0:00:20]} 37. b5 {[%emt 0:00:18]} 1-0

[Event "13th Palmanova Festival A 2024"]
[Site "Palmanova"]
[Date "2024.12.28"]
[Round "2.8"]
[White "Knudsen, Simon"]
[Black "Rossi, Gabriele Valerio"]
[Result "1/2-1/2"]
[ECO "C41"]
[WhiteElo "2303"]
[BlackElo "2007"]
[Annotator "RC"]
[PlyCount "56"]
[EventDate "2024.12.27"]
[EventCountry "ITA"]
[SourceTitle "playchess.com"]
[Source "ChessBase"]
[SourceQuality "1"]
[TimeControl "6000+30"]

1. e4 {[%emt 0:08:54]} d6 {[%emt 0:00:07]} 2. d4 {[%emt 0:00:42]} Nf6 {[%emt 0:00:04]} 3. Nc3 {[%emt 0:00:06]} e5 {[%emt 0:00:02]} 4. Nf3 {[%emt 0:00:48]} exd4 {[%emt 0:00:03]} 5. Nxd4 {[%emt 0:00:09]} Be7 {[%emt 0:00:04]} 6. Be2 {[%emt 0:02:18]} O-O {[%emt 0:00:05]} 7. O-O {[%emt 0:00:09]} Re8 {[%emt 0:00:51]} 8. Re1 {[%emt 0:03:38]} c6 {[%emt 0:00:34]} 9. Bf4 {[%emt 0:06:02]} Bf8 {[%emt 0:04:05]} 10. Bf1 {[%emt 0:02:21]} b5 {[%emt 0:05:32]} 11. a3 {[%emt 0:02:08]} a6 {[%emt 0:02:37]} 12. Nb3 {[%emt 0:04:54]} Bb7 {[%emt 0:07:21]} 13. e5 {[%emt 0:01:24]} dxe5 {[%emt 0:01:58]} 14. Qxd8 {[%emt 0:00:42]} Rxd8 {[%emt 0:00:01]} 15. Bxe5 {[%emt 0:00:09]} Nbd7 {[%emt 0:10:17]} 16. Bg3 {[%emt 0:00:34]} Rac8 {[%emt 0:08:19]} 17. Rad1 {[%emt 0:01:16]} c5 {[%emt 0:06:13]} 18. Rd2 {[%emt 0:01:00]} b4 {[%emt 0:03:39]} 19. axb4 {[%emt 0:07:58]} cxb4 {[%emt 0:00:01]} 20. Na4 {[%emt 0:00:58]} Ne4 {[%emt 0:10:11]} 21. Rxd7 {[%emt 0:07:23]} Rxd7 {[%emt 0:00:16]} 22. Nb6 {[%emt 0:00:07]} Nxg3 {[%emt 0:02:01]} 23. hxg3 {[%emt 0:01:38]} Re7 {[%emt 0:01:03]} 24. Rxe7 {[%emt 0:00:08]} Bxe7 {[%emt 0:00:02]} 25. Nxc8 {[%emt 0:00:08]} Bxc8 {[%emt 0:00:02]} 26. Bd3 {[%emt 0:04:03]} Bf6 {[%emt 0:19:57]} 27. Nc5 {[%emt 0:00:07]} Bxb2 {[%emt 0:04:34]} 28. Bxa6 {[%emt 0:00:08]} Bd4 {[%emt 0:05:33]} 1/2-1/2

[Event "13th Palmanova Festival A 2024"]
[Site "Palmanova"]
[Date "2024.12.28"]
[Round "2.9"]
[White "Stankovic, Milos"]
[Black "Dolas, Aarush"]
[Result "1/2-1/2"]
[ECO "D00"]
[WhiteElo "2462"]
[BlackElo "2015"]
[Annotator "RC"]
[PlyCount "61"]
[EventDate "2024.12.27"]
[EventCountry "ITA"]
[SourceTitle "playchess.com"]
[Source "ChessBase"]
[SourceQuality "1"]
[TimeControl "6000+30"]

1. d4 {[%emt 0:00:18]} Nf6 {[%emt 0:00:08]} 2. Bg5 {[%emt 0:00:30]} d5 {[%emt 0:00:21]} 3. Bxf6 {[%emt 0:01:40]} exf6 {[%emt 0:00:10]} 4. e3 {[%emt 0:00:24]} g6 {[%emt 0:00:53]} 5. c4 {[%emt 0:01:23]} dxc4 {[%emt 0:01:24]} 6. Bxc4 {[%emt 0:00:30]} Bg7 {[%emt 0:00:25]} 7. Nc3 {[%emt 0:03:13]} O-O {[%emt 0:02:04]} 8. Nge2 {[%emt 0:09:54]} f5 {[%emt 0:04:40]} 9. h4 {[%emt 0:03:26]} c5 {[%emt 0:17:32]} 10. dxc5 {[%emt 0:11:24]} Nd7 {[%emt 0:04:04]} 11. h5 {[%emt 0:11:07]} Nxc5 {[%emt 0:02:20]} 12. hxg6 {[%emt 0:03:21]} hxg6 {[%emt 0:06:01]} 13. Nf4 {[%emt 0:07:14]} Be6 {[%emt 0:03:06]} 14. Nxe6 {[%emt 0:02:47]} Nxe6 {[%emt 0:02:35]} 15. Qb3 {[%emt 0:15:02]} Nc5 {[%emt 0:21:58]} 16. Qc2 {[%emt 0:03:29]} Rc8 {[%emt 0:05:02]} 17. g4 {[%emt 0:10:10]} b5 {[%emt 0:04:47]} 18. Rd1 {[%emt 0:03:14]} Qa5 {[%emt 0:05:00]} 19. Bd5 {[%emt 0:00:42]} b4 {[%emt 0:01:29]} 20. gxf5 {[%emt 0:02:10]} bxc3 {[%emt 0:01:32]} 21. b4 {[%emt 0:03:57]} Qa4 {[%emt 0:01:56]} 22. Qxa4 {[%emt 0:00:41]} Nxa4 {[%emt 0:00:07]} 23. fxg6 {[%emt 0:00:11]} Rfd8 {[%emt 0:09:08]} 24. Bxf7+ {[%emt 0:02:14]} Kf8 {[%emt 0:00:14]} 25. Rxd8+ {[%emt 0:00:35]} Rxd8 {[%emt 0:00:07]} 26. Bb3 {[%emt 0:00:16]} Nb2 {[%emt 0:02:30]} 27. Rh5 {[%emt 0:02:06]} Rd6 {[%emt 0:02:30]} 28. Rb5 {[%emt 0:01:54]} Rxg6 {[%emt 0:07:48]} 29. Rb8+ {[%emt 0:00:37]} Ke7 {[%emt 0:00:09]} 30. Rb7+ {[%emt 0:00:14]} Kd8 {[%emt 0:00:10]} 31. Ke2 {[%emt 0:02:21]} 1/2-1/2

[Event "13th Palmanova Festival A 2024"]
[Site "Palmanova"]
[Date "2024.12.28"]
[Round "2.10"]
[White "Gkoumas, Georgios"]
[Black "Candian, Lorenzo"]
[Result "1-0"]
[ECO "C70"]
[WhiteElo "2449"]
[BlackElo "2208"]
[Annotator "RC"]
[PlyCount "99"]
[EventDate "2024.12.27"]
[EventCountry "ITA"]
[SourceTitle "playchess.com"]
[Source "ChessBase"]
[SourceQuality "1"]
[TimeControl "6000+30"]

1. e4 {[%emt 0:02:18]} e5 {[%emt 0:07:45]} 2. Nf3 {[%emt 0:00:08]} Nc6 {[%emt 0:00:07]} 3. Bb5 {[%emt 0:00:10]} a6 {[%emt 0:00:31]} 4. Ba4 {[%emt 0:00:08]} g6 {[%emt 0:00:19]} 5. d4 {[%emt 0:00:33]} b5 {[%emt 0:01:00]} 6. Bb3 {[%emt 0:00:13]} exd4 {[%emt 0:00:18]} 7. a4 {[%emt 0:05:05]} Bb7 {[%emt 0:00:31]} 8. O-O {[%emt 0:04:51]} Bg7 {[%emt 0:13:55]} 9. axb5 {[%emt 0:05:50]} axb5 {[%emt 0:00:11]} 10. Rxa8 {[%emt 0:00:02]} Bxa8 {[%emt 0:00:17]} 11. Na3 {[%emt 0:00:35]} Na5 {[%emt 0:18:12]} 12. Ba2 {[%emt 0:05:22]} Qb8 {[%emt 0:30:29]} 13. Nxd4 {[%emt 0:09:20]} b4 {[%emt 0:08:23]} 14. Nc4 {[%emt 0:01:35]} Nxc4 {[%emt 0:02:01]} 15. Bxc4 {[%emt 0:00:11]} Nf6 {[%emt 0:01:35]} 16. e5 {[%emt 0:08:55]} Qb7 {[%emt 0:07:09]} 17. Nf3 {[%emt 0:08:10]} Nd5 {[%emt 0:01:37]} 18. Qd4 {[%emt 0:04:29]} O-O {[%emt 0:01:52]} 19. Qg4 {[%emt 0:08:53]} Nb6 {[%emt 0:04:05]} 20. Bd3 {[%emt 0:00:27]} Na4 {[%emt 0:04:04]} 21. Re1 {[%emt 0:04:41]} Nc5 {[%emt 0:00:54]} 22. Bc4 {[%emt 0:00:54]} Re8 {[%emt 0:00:45]} 23. Rd1 {[%emt 0:15:28]} Qc8 {[%emt 0:04:44]} 24. Be3 {[%emt 0:09:43]} Ne6 {[%emt 0:00:55]} 25. h4 {[%emt 0:03:55]} Bxf3 {[%emt 0:00:45]} 26. gxf3 {[%emt 0:00:02]} Bxe5 {[%emt 0:00:12]} 27. f4 {[%emt 0:00:02]} Bxb2 {[%emt 0:00:29]} 28. f5 {[%emt 0:00:04]} Nf8 {[%emt 0:00:13]} 29. fxg6 {[%emt 0:01:14]} hxg6 {[%emt 0:00:01]} 30. h5 {[%emt 0:00:05]} d5 {[%emt 0:00:29]} 31. Qxc8 {[%emt 0:00:07]} Rxc8 {[%emt 0:00:01]} 32. Rxd5 {[%emt 0:00:07]} gxh5 {[%emt 0:00:22]} 33. Rg5+ {[%emt 0:00:19]} Kh7 {[%emt 0:00:26]} 34. Bxf7 {[%emt 0:00:17]} Rd8 {[%emt 0:02:15]} 35. Bg8+ {[%emt 0:02:59]} Kh8 {[%emt 0:00:01]} 36. Bc4 {[%emt 0:00:11]} Rd1+ {[%emt 0:00:58]} 37. Kg2 {[%emt 0:00:12]} Nd7 {[%emt 0:00:00]} 38. Rxh5+ {[%emt 0:02:37]} Kg7 {[%emt 0:00:08]} 39. Rb5 {[%emt 0:00:40]} c5 {[%emt 0:01:11]} 40. f4 {[%emt 0:01:22]} Bd4 {[%emt 0:00:45]} 41. Be2 {[%emt 0:00:27]} Re1 {[%emt 0:00:00]} 42. Bxd4+ {[%emt 0:00:00]} cxd4 {[%emt 0:00:00]} 43. Kf2 {[%emt 0:00:00]} Rc1 {[%emt 0:00:00]} 44. Rb7 {[%emt 0:00:00]} Rxc2 {[%emt 0:00:00]} 45. Rxd7+ {[%emt 0:00:00]} Kf6 {[%emt 0:00:00]} 46. Rxd4 {[%emt 0:00:00]} b3 {[%emt 0:00:00]} 47. Ke3 {[%emt 0:00:00]} b2 {[%emt 0:00:00]} 48. Rd6+ {[%emt 0:00:00]} Ke7 {[%emt 0:00:00]} 49. Rb6 {[%emt 0:00:00]} Kd7 {[%emt 0:00:00]} 50. Kd3 {[%emt 0:00:00]} 1-0

[Event "13th Palmanova Festival A 2024"]
[Site "Palmanova"]
[Date "2024.12.28"]
[Round "2.11"]
[White "Aarav A"]
[Black "Lumachi, Gabriele"]
[Result "0-1"]
[ECO "B08"]
[WhiteElo "2186"]
[BlackElo "2438"]
[Annotator "ChessBase"]
[PlyCount "142"]
[EventDate "2024.12.27"]
[EventCountry "ITA"]
[SourceTitle "playchess.com"]
[Source "ChessBase"]
[SourceQuality "1"]
[TimeControl "6000+30"]

1. e4 {[%emt 0:01:06]} Nc6 {[%emt 0:00:06]} 2. Nf3 {[%emt 0:00:09]} d6 {[%emt 0:00:06]} 3. d4 {[%emt 0:00:52]} Nf6 {[%emt 0:00:07]} 4. Nc3 {[%emt 0:00:37]} g6 {[%emt 0:00:07]} 5. Be2 {[%emt 0:00:18]} Bg7 {[%emt 0:00:27]} 6. O-O {[%emt 0:00:28]} O-O {[%emt 0:00:06]} 7. h3 {[%emt 0:00:32]} a6 {[%emt 0:00:52]} 8. a4 {[%emt 0:00:17]} e6 {[%emt 0:07:37]} 9. d5 {[%emt 0:14:56]} Nb4 {[%emt 0:05:52]} 10. a5 {[%emt 0:02:23]} c5 {[%emt 0:03:00]} 11. dxc6 {[%emt 0:11:42]} Nxc6 {[%emt 0:00:51]} 12. Be3 {[%emt 0:00:42]} Qe7 {[%emt 0:30:31]} 13. Bb6 {[%emt 0:06:37]} d5 {[%emt 0:18:54]} 14. exd5 {[%emt 0:00:22]} exd5 {[%emt 0:00:27]} 15. Re1 {[%emt 0:03:56]} Be6 {[%emt 0:01:08]} 16. Nd4 {[%emt 0:03:22]} Qd6 {[%emt 0:04:50]} 17. Bf1 {[%emt 0:09:27]} Nd7 {[%emt 0:01:24]} 18. Nxe6 {[%emt 0:06:18]} fxe6 {[%emt 0:01:50]} 19. Be3 {[%emt 0:00:22]} Rae8 {[%emt 0:03:51]} 20. Qd2 {[%emt 0:11:13]} Qc7 {[%emt 0:01:25]} 21. Bg5 {[%emt 0:01:31]} Kh8 {[%emt 0:00:31]} 22. Bh4 {[%emt 0:01:53]} Be5 {[%emt 0:03:34]} 23. Nd1 {[%emt 0:07:36]} Nc5 {[%emt 0:05:29]} 24. f3 {[%emt 0:00:50]} Bh2+ {[%emt 0:06:29]} 25. Kh1 {[%emt 0:00:21]} Bg3 {[%emt 0:00:38]} 26. Bxg3 {[%emt 0:00:37]} Qxg3 {[%emt 0:00:06]} 27. Ne3 {[%emt 0:00:47]} Nd7 {[%emt 0:02:20]} 28. Ng4 {[%emt 0:01:12]} Qf4 {[%emt 0:00:28]} 29. Qc3+ {[%emt 0:01:32]} Qd4 {[%emt 0:01:40]} 30. Qb3 {[%emt 0:02:58]} Qb4 {[%emt 0:01:41]} 31. Qxb4 {[%emt 0:01:38]} Nxb4 {[%emt 0:00:06]} 32. Re2 {[%emt 0:00:20]} h5 {[%emt 0:01:23]} 33. Nf2 {[%emt 0:00:51]} Kg7 {[%emt 0:00:44]} 34. c3 {[%emt 0:00:06]} Nc6 {[%emt 0:00:10]} 35. Rd2 {[%emt 0:02:36]} Nf6 {[%emt 0:03:43]} 36. Nd3 {[%emt 0:01:00]} e5 {[%emt 0:01:40]} 37. Nc5 {[%emt 0:00:08]} Re7 {[%emt 0:00:21]} 38. b4 {[%emt 0:02:25]} g5 {[%emt 0:00:53]} 39. b5 {[%emt 0:01:53]} axb5 {[%emt 0:00:05]} 40. a6 {[%emt 0:01:17]} bxa6 {[%emt 0:02:09]} 41. Rxa6 {[%emt 0:00:09]} Rc8 {[%emt 0:00:00]} 42. Bxb5 {[%emt 0:00:00]} Na7 {[%emt 0:00:00]} 43. Ne6+ {[%emt 0:00:00]} Rxe6 {[%emt 0:00:00]} 44. Rxa7+ {[%emt 0:00:00]} Kf8 {[%emt 0:00:00]} 45. Bd7 {[%emt 0:00:00]} Re7 {[%emt 0:00:00]} 46. Bxc8 {[%emt 0:00:00]} Rxa7 {[%emt 0:00:00]} 47. Re2 {[%emt 0:00:00]} e4 {[%emt 0:00:19]} 48. Bf5 {[%emt 0:00:00]} Ra4 {[%emt 0:00:05]} 49. fxe4 {[%emt 0:00:00]} dxe4 {[%emt 0:00:13]} 50. Kh2 {[%emt 0:00:00]} Ke7 {[%emt 0:00:55]} 51. h4 {[%emt 0:00:00]} g4 {[%emt 0:04:51]} 52. Kg3 {[%emt 0:00:00]} Kd6 {[%emt 0:00:00]} 53. Kf4 {[%emt 0:00:00]} Nd5+ {[%emt 0:00:24]} 54. Kg5 {[%emt 0:00:00]} Ke5 {[%emt 0:01:32]} 55. Rxe4+ {[%emt 0:00:00]} Rxe4 {[%emt 0:00:06]} 56. Bxe4 {[%emt 0:00:00]} Kxe4 {[%emt 0:00:05]} 57. Kxh5 {[%emt 0:00:00]} Kf5 {[%emt 0:00:56]} 58. Kh6 {[%emt 0:00:00]} Nf4 {[%emt 0:00:32]} 59. g3 {[%emt 0:00:00]} Ne2 {[%emt 0:00:05]} 60. c4 {[%emt 0:00:00]} Nxg3 {[%emt 0:00:06]} 61. Kg7 {[%emt 0:00:00]} Ne4 {[%emt 0:00:35]} 62. h5 {[%emt 0:00:00]} g3 {[%emt 0:00:06]} 63. h6 {[%emt 0:00:00]} Nf6 {[%emt 0:00:24]} 64. h7 {[%emt 0:00:00]} Nxh7 {[%emt 0:00:06]} 65. c5 {[%emt 0:00:00]} Nf6 {[%emt 0:00:14]} 66. c6 {[%emt 0:00:00]} g2 {[%emt 0:00:06]} 67. c7 {[%emt 0:00:00]} g1=Q+ {[%emt 0:00:09]} 68. Kf7 {[%emt 0:00:00]} Qg8+ {[%emt 0:00:18]} 69. Ke7 {[%emt 0:00:07]} Qe6+ {[%emt 0:00:07]} 70. Kf8 {[%emt 0:00:05]} Kg6 {[%emt 0:00:28]} 71. c8=Q {[%emt 0:00:06]} Nh7# {[%emt 0:00:13]} 0-1